Cogmind - Beta 10.1 @@@ ROGUE MODE // 2020.10.04 @ 00:06:04 Player: HOTSOUP Result: Destroyed by G-34 Mercenary with Small Laser Performance ------------- Evolutions (0) 0 Regions Visited (1) 200 Robots Destroyed (22) 110 Value Destroyed (658) 658 Prototype IDs (0) 0 Alien Tech Used (0) 0 Bonus (0) 0 TOTAL SCORE: 968 Bonus ------- None Cogmind --------- Core Integrity 0/250 Matter 300/300 Energy 99/100 System Corruption 0% Temperature Cool (6) Movement Core (50) Location -10/Materials Parts ------- > --- POWER (1) -------- (None) > --- PROPULSION (2) --- (None) > --- UTILITY (2) ------ (None) > --- WEAPON (2) ------- (None) > --- INVENTORY (4) ---- Aluminum Leg High-capacity Battery (400) Signal Interpreter ECM Suite Peak State ------------ > --- POWER ------------ Ion Engine > --- PROPULSION ------- Aluminum Leg Aluminum Leg > --- UTILITY ---------- Large Storage Unit Visual Processing Unit > --- WEAPON ----------- Small Laser Assault Rifle > --- INVENTORY -------- Ion Engine Light Ion Engine Light Treads Light Treads Aluminum Leg Aluminum Leg High-capacity Battery Signal Interpreter ECM Suite Assault Rifle [Rating: 9] Favorites ----------- Power Ion Engine Engine Ion Engine Propulsion Aluminum Leg Treads Light Treads Leg Aluminum Leg Wheel Wheel Flight Unit Flight Unit Utility Visual Processing Unit Storage Small Storage Unit Processor Visual Processing Unit Weapon Assault Rifle Energy Gun Small Laser Ballistic Gun Assault Rifle Build | -11 -10 ------- Run | Scr Mat Slots Evolved . | . . Power . | . . Propulsion . | . . Utility . | . . Weapon . | . . Parts Attached 28 | 6 22 Power 3 | 1 2 Engine 3 | 1 2 Core . | . . Reactor . | . . Propulsion 13 | 2 11 Treads 2 | . 2 Leg 7 | . 7 Wheel 3 | 2 1 Hover . | . . Flight 1 | . 1 Utility 3 | 1 2 Device . | . . Storage 2 | 1 1 Processor 1 | . 1 Hackware . | . . Protection . | . . Artifact . | . . Weapon 9 | 2 7 Energy Gun 5 | . 5 Energy Cannon . | . . Ballistic Gun 4 | 2 2 Ballistic Cannon . | . . Launcher . | . . Special Weapon . | . . Impact Weapon . | . . Slashing Weapon . | . . Piercing Weapon . | . . Special Melee Weapon . | . . Unidentified Prototypes . | . . Parts Lost 11 | . 11 Power 2 | . 2 Propulsion 2 | . 2 Utility . | . . Weapon 7 | . 7 Highest Loss Streak 6 | . 6 Average Slot Usage (%) 84 | . 84 Engine 10 | . 10 Treads 1 | . 1 Leg 20 | . 20 Wheel 4 | . 4 Storage 13 | . 13 Processor 8 | . 8 Energy Gun 7 | . 7 Ballistic Gun 15 | . 15 Naked Turns 11 | . 11 Heaviest Build 25 | 10 25 Greatest Support 40 | 26 40 Greatest Overweight (x) 6 | . 6 Average Overweight (x) . | . . Largest Inventory Capacity 10 | 6 10 Average Capacity 7 | 5 8 Most Carried 10 | 6 10 Average Carried 6 | 1 6 Final Capacity 6 | 6 4 Final Carried 6 | 6 4 Class Distribution -------------------- 56% | Mutant 43% | Scavenger-Mutant Dominant Class ---------------- Mutant | -10/Materials Resources | -11 -10 ----------- Run | Scr Mat Matter Collected 774 | 188 586 Remotely . | . . Salvage Created 720 | . 720 Parts 40 | . 40 Haulers Intercepted . | . . Recyclers Shooed . | . . Parts Field Recycled . | . . Retrieved Matter . | . . Parts Self-Destructed . | . . Prevented . | . . Kills | -11 -10 ------- Run | Scr Mat Combat Hostiles Destroyed 19 | . 19 Guns 18 | . 18 AOE 1 | . 1 Classes Destroyed 4 | . 4 Operator 1 | . 1 Watcher 2 | . 2 Swarmer 3 | . 3 Grunt 16 | . 16 Best Kill Streak 6 | . 6 Combat Bots Only 6 | . 6 Max Kills in Single Turn 1 | . 1 Gunslinging . | . . Exploded 1 | . 1 Melee . | . . Uniques/NPCs Destroyed . | . . Combat | -11 -10 -------- Run | Scr Mat Damage Taken 1319 | . 1319 Core 258 | . 258 Absorbed by Shields . | . . Core Remaining (%) 100 | 100 . Volleys Fired 112 | . 112 Largest 2 | . 2 Hottest 60 | . 60 Shots Fired 166 | . 166 Gun 166 | . 166 Cannon . | . . Launcher . | . . Special . | . . Kinetic 129 | . 129 Thermal 26 | . 26 Explosive . | . . Electromagnetic 11 | . 11 Robot Hit Streak 15 | . 15 Robot Miss Streak 6 | . 6 Penetration Max . | . . Secondary Targets 4 | . 4 Max Gunslinging Chain 1 | . 1 Shots Hit Robots 98 | . 98 Core Hits 44 | . 44 Critical Hits . | . . Critical Kills . | . . Critical Parts Destroyed . | . . Melee Attacks . | . . Impact . | . . Slashing . | . . Piercing . | . . Sneak Attacks . | . . Combat Hostiles . | . . Follow-up Attacks . | . . Damage Inflicted 1461 | . 1461 Guns 1195 | . 1195 Cannons . | . . Explosions 266 | . 266 Melee . | . . Ramming . | . . Kinetic 897 | . 897 Thermal 472 | . 472 Explosive . | . . Electromagnetic 92 | . 92 Impact . | . . Slashing . | . . Piercing . | . . Highest Corruption . | . . Average Corruption . | . . Corruption Purged . | . . Overload Shots . | . . Overflow Damage 91 | . 91 Projectiles . | . . Explosions 91 | . 91 Melee . | . . Knockbacks . | . . Impact . | . . Kinetic . | . . Secondary . | . . Self-Inflicted Damage 33 | . 33 Shots 1 | . 1 Rammed . | . . Targets Rammed . | . . Kicked . | . . Crushed . | . . Highest Temperature 82 | . 82 Average Temperature 31 | . 31 Received Heat Transfer 618 | . 618 Siege Activations . | . . Robots Corrupted . | . . Combat Hostiles . | . . Parts Fried . | . . Impact Corruptions . | . . Robots Melted . | . . Combat Hostiles . | . . Parts Melted . | . . Heat Transferred 675 | . 675 Parts Sabotaged . | . . Parts Stolen . | . . Parts Stripped . | . . Power Chain Reactions 1 | . 1 Missiles Intercepted . | . . Alert | -11 -10 ------- Run | Scr Mat Peak Influence 319 | . 319 Initial . | . . Average 134 | . 143 Maximum Alert Level 1 | . 1 Low Security (%) 82 | 100 81 Level 1 17 | . 18 Level 2 . | . . Level 3 . | . . Level 4 . | . . Level 5 . | . . High Security . | . . Max Security . | . . Squads Dispatched 7 | . 7 Investigation 4 | . 4 Extermination . | . . Reinforcement 3 | . 3 Assault . | . . Garrison . | . . Intercept . | . . Construction Impeded . | . . Haulers Reinforced . | . . Stealth | -11 -10 --------- Run | Scr Mat Distress Signals 1 | . 1 Communications Jammed . | . . Distress Signals . | . . Times Spotted 38 | . 38 Peak Tracking Total 6 | . 6 Tactical Retreats 1 | . 1 Traps | -11 -10 ------- Run | Scr Mat Traps Triggered 3 | . 3 Indirectly . | . . Trap Hack Attempts . | . . Triggered . | . . Disarmed . | . . Reprogrammed . | . . Reused . | . . Traps Extracted . | . . Installed . | . . Triggered . | . . Machines | -11 -10 ---------- Run | Scr Mat Machines Disabled 1 | . 1 Max in Single Turn 1 | . 1 Machines Sabotaged . | . . Garrisons Compromised . | . . Overloaded Fab Kills . | . . Fab Network Shutdowns . | . . Hacking | -11 -10 --------- Run | Scr Mat Machines Accessed 3 | . 3 Terminals 1 | . 1 Fabricators . | . . Repair Stations . | . . Recycling Units 2 | . 2 Scanalyzers . | . . Garrison Access . | . . Total Hacks 10 | . 10 Successful 4 | . 4 Failed 6 | . 6 Catastrophic . | . . Database Lockouts . | . . Manual 6 | . 6 Terminals 4 | . 4 Fabricators . | . . Repair Stations . | . . Recycling Units 6 | . 6 Scanalyzers . | . . Garrison Access . | . . Terminal Hacks . | . . Fabricator Hacks . | . . Repair Station Hacks . | . . Recycling Unit Hacks 1 | . 1 Retrieve Components 1 | . 1 Scanalyzer . | . . Garrison Access Hacks . | . . Unauthorized Hacks 3 | . 3 Terminals 1 | . 1 Track 1 | . 1 Fabricators . | . . Repair Stations . | . . Recycling Units 2 | . 2 Tunnel 2 | . 2 Scanalyzers . | . . Garrison Access . | . . Data Cores Recovered . | . . Used . | . . Hacking Detections 2 | . 2 Full Trace Events . | . . Feedback Events . | . . Feedback Blocked . | . . Robot Schematics Acquired . | . . Robots Built . | . . Matter . | . . Time . | . . Total Robot Build Rating . | . . Part Schematics Acquired . | . . Parts Built . | . . Matter . | . . Time . | . . Total Part Build Rating . | . . Parts Repaired . | . . Time . | . . Parts Recycled . | . . Recycled Matter . | . . Retrieved Matter . | . . Retrieved Components 7 | . 7 Parts Scanalyzed . | . . Part Schematics Acquired . | . . Parts Damaged . | . . Bothacking | -11 -10 ------------ Run | Scr Mat Used RIF Installer . | . . Robots Hacked . | . . Non-combat . | . . Combat . | . . Robot Hacks Applied . | . . Relay Couplers Released . | . . Robots Rewired . | . . Allies Hacked . | . . Hacks Repelled . | . . Allies | -11 -10 -------- Run | Scr Mat Total Allies . | . . Largest Group . | . . Highest-Rated Group . | . . Highest-Rated Ally . | . . Total Orders . | . . Ally Attacks . | . . Total Damage . | . . Kills . | . . Allies Corrupted . | . . Allies Melted . | . . Intel | -11 -10 ------- Run | Scr Mat Robot Analysis Total . | . . Derelict Logs Recovered . | . . Drone Launches . | . . Drone Recoveries . | . . Exploration | -11 -10 ------------- Run | Scr Mat Turns Passed 995 | 63 932 Spaces Moved 537 | 61 476 Core 32 | 17 15 Treads 5 | . 5 Legs 355 | . 355 Wheels 145 | 44 101 Hover . | . . Flight . | . . Fastest Speed 50 | 50 50 Average Speed 118 | 78 123 Slowest Speed 350 | 90 350 Overloaded Moves . | . . Propulsion Burnouts . | . . Robots Hopped . | . . Cave-ins Triggered . | . . Exploration Rate (%) 38 | 3 73 Regions Visited 1 Branch Regions . Pre-discovered Areas 2 | . 2 Known Exits Taken . | . . Unknown Exits Taken 1 | 1 . Scrap Searched . | . . Spaces Dug . | . . Terrain Destroyed 51 | . 51 Melee . | . . Projectile . | . . AOE 51 | . 51 Terrain Rammed . | . . Walls Destroyed . | . . Machines Disabled . | . . Actions | -11 -10 --------- Run | Scr Mat Total 730 | 72 658 Wait 34 | . 34 Move 536 | 60 476 Hop . | . . Pick Up 10 | 6 4 Fast Attach 14 | 6 8 Attach 6 | . 6 Detach . | . . Swap 8 | . 8 Drop 10 | . 10 Fire 112 | . 112 Melee . | . . Ram . | . . Kick . | . . Crush . | . . Escape Stasis . | . . Rewire . | . . Trap . | . . Miscellaneous . | . . Route ------- -11/Scrapyard -10/Materials (discovered 2 exits: [*Mat] / [*Min]) History --------- Turn | Location | Event 5 | -11/Scrapyard | Discovered new exit (range 14) 64 | -11/Scrapyard | Entered Materials 174 | -10/Materials | Discovered new exit (range 8) 305 | -10/Materials | Build established: Mutant 505 | -10/Materials | Discovered new exit (range 18) 697 | -10/Materials | Core integrity fell below 50% 778 | -10/Materials | Core integrity fell below 20% 830 | -10/Materials | Lost 6 parts (1p2n3w) 985 | -10/Materials | Released all parts (4) 996 | -10/Materials | Destroyed by G-34 Mercenary with Small Laser Last Messages --------------- 00838_ Acquired Flight Unit. 00839_ Dropped Flight Unit. 00843_ Acquired Aluminum Leg. 00851_ K-01 Serf collects debris. 00862_ Connecting with Terminal... >>Trojan(Track) Trojan loaded successfully. Testing... Tracking enabled and active. 00878_ Acquired 7 matter. 00885_ Acquired 23 matter. 00958_ O-16 Technician: "IFF HANDSHAKE FAILED. SECURING TERMINAL." 00959_ O-16 Technician sends out distress signal. 00962_ ALERT: Hostiles spotted, dispatching reinforcements to Terminal M004. 00976_ Assault Rifle destroyed. 00980_ Sml. Laser destroyed. 00982_ Atomic Centrifuge disabled. 00985_ Released Visual Processing Unit. 00985_ Released Lrg. Storage Unit. 00985_ Released Aluminum Leg. Map ----- +----------------------------------------------------+ | | | ?????????????????????????????????????????????????? | | ?????????????????????????????????????????????????? | | ###?????###########??????????????????????????????? | | #?????# #??????????????????????????????? | | #????##"""""""""###????????????????????????????? | | #????# " # #????????????????????????????? | | #????# " # #???????????? #??????????????? | | #????# " # #??????????? #??????????????? | | " #????# " + #??????????? ???????????????? | | " ######"" # #?????????? ????????????????? | | " ## " # #????????? ?????????????????? | | + ##"""""""# #??????###+###???????????????? | | ## #### # ####### ####????????????? | | ## #??###### ????????????? | | ## ######### ?????????????? | | +## T ?????????????? | | ######## #% a#???????????????? | | #??????####### #????????????????? | | #????????????# """ #????????????????? | | ### #????????????# """ #????????????????? | | ########?????######## """ +????????????????? | | #????????????# #????????????????? | | #????????????+ #????????????????? | | #????????????# #????????????????? | | #????????????# #######@### #????????????????? | | #????????????# #?# ## #????????????????? | | #????????????# #?# g ## #????????????????? | | ############### #?# " " ## #????????????????? | | #?# """ ## #????????????????? | | = #?# g""" ## #########??? ????? | | = #?# **!==## ## #??? ????? | | ####+######## ###?######## # """ #??? ????? | | ?? ?????# #???# # """ #???/????? | | # """ ???# #???# T + """ #?? ? ??? | | # "T" #??# #???# # #?? ?""??? | | # #??# #???## ##### # #?? ?""? | | # #??# #????# #???###+######+###?? "?" | | # """" #??# #????# #???? ???# #???? | | # """" #??# ######/##### """ #?# #???? """ | | # """" #??# ## ## """ #?# #???? """ ? | | # ?????## ## ![ ## """ #?# #???? "?" ? | | ######?????# [ # ! ## #?# #####! ?? ? | | ???????????# = # ##= """ ### #########+## | | ???????????# [ !+ ## """ # | | ???????????# # ## ""? # | | ???????????# # ## ????# !! | | ???????????## ## ## ????# """ != | | ????????????# ## ## ????# """ != | | ?????????#### #################### ^ | +----------------------------------------------------+ Best States ------------- Heat Dissipation 25 Energy Generation 10 Energy Capacity 250 Matter Stores 300 Matter Capacity 300 Sight Range 18 Terrain Scan Density 10 Evasion (%) 50 Recoil Reduction 2 Item Schematics ----------------- None Robot Schematics ------------------ None Fabricated ------------ Nothing Alien Tech Used ----------------- None Achievements -------------- None Challenges ------------ None Game ------ Seed BladeZioniteSpear Manual? 0 Play Time 00:10:26 Cumulative 91.7 hours Start 2020.10.03 @ 23:58:04 End 2020.10.04 @ 00:06:04 Sessions 1 Manual Loads 0 Difficulty Rogue Special Mode None Game No. 133 Rogue 109 Adventurer 22 Explorer 2 Win Type - Total 1 Types 1/0/0/0/0/0/0/0/0 Lore% 46 Gallery% 51 Achievement% 42 Wizard Run 0 Options --------- ASCII 0 Keyboard 0 Movement Numpad Keybinds 0 Fullscreen 1 Font 14/SmallcapsGlow Map View 84x54 Tactical HUD 1 Map Filters NONE Filters NONE Steam 1 RUN: f345e9cf-fbaf-49ed-b88c-f52330c985c8